bitfinex-derivatives/quotes_BTCF0:USTF0_20210108
["timestamp","ask_amount","ask_price","bid_price","bid_amount"]
[1610066863226,0.12562,39055.0,39033.0,0.03174106]
[1610066864029,0.13632608,39035.0,39033.0,0.03174106]
[1610066864227,0.13632608,39035.0,39032.0,0.03173672]
[1610066864428,0.13632608,39035.0,39034.0,0.03173556]
[1610066864627,2.9991,39053.0,39033.0,0.03173495]
[1610066864828,2.9991,39053.0,39034.0,0.03140808]
[1610066865028,2.9991,39053.0,39034.0,0.03173417]
[1610066865228,2.9991,39053.0,39032.0,0.03173496]
[1610066865428,2.9991,39053.0,39035.0,0.03173542]
[1610066865628,2.9991,39053.0,39035.0,0.00032609]
[1610066865831,2.9991,39053.0,39033.0,0.03173456]
[1610066866031,2.9991,39053.0,39032.0,0.03140813]
[1610066866230,2.9991,39053.0,39034.0,0.03173446]
[1610066866430,0.12562,39055.0,39034.0,0.03140838]
[1610066866632,0.2712,39065.0,39033.0,0.03173454]
[1610066866831,0.2712,39065.0,39035.0,0.0317341]
[1610066867031,0.2712,39065.0,39031.0,0.08871]
[1610066867032,0.2712,39065.0,39034.0,0.03173425]
[1610066867233,0.2712,39065.0,39036.0,0.0317348]
[1610066867535,0.2712,39065.0,39032.0,0.03173444]
[1610066867933,0.2712,39065.0,39042.0,0.13632608]
[1610066868334,0.2712,39065.0,39043.0,0.03173329]
[1610066868534,0.08829,39066.0,39043.0,0.03173329]
[1610066868735,0.00304252,39078.0,39043.0,0.03173329]
[1610066868936,0.10133,39079.0,39043.0,0.03173329]
[1610066869336,0.00303867,39090.0,39043.0,0.03173329]
[1610066869936,0.13632608,39049.0,39046.0,0.13632608]
[1610066870336,0.13632608,39049.0,39043.0,0.03173329]
[1610066870537,0.13632608,39049.0,39047.0,0.03172745]
[1610066870736,0.13632608,39049.0,39044.0,0.0317309]
[1610066870937,0.13632608,39049.0,39048.0,0.00032605]
[1610066871137,0.13632608,39049.0,39048.0,0.03173163]
[1610066871339,0.13632608,39049.0,39032.0,0.03173283]
[1610066871539,0.13632608,39049.0,39048.0,0.03173221]
[1610066871740,0.13632608,39049.0,39048.0,0.00032607]
[1610066871940,0.13632608,39049.0,39033.0,0.03173289]
[1610066872140,0.13632608,39049.0,39048.0,0.00032607]
[1610066872341,0.13632608,39049.0,39034.0,0.03173268]
[1610066872542,0.13632608,39049.0,39048.0,0.00032607]
[1610066872942,0.13632608,39049.0,39032.0,0.03173174]
[1610066873141,0.13632608,39049.0,39048.0,0.00032605]
[1610066873543,0.13632608,39049.0,39033.0,0.03173144]
[1610066873745,0.13632608,39049.0,39048.0,0.00032607]
[1610066873944,0.13632608,39049.0,39034.0,0.16805886]
[1610066874144,0.13632608,39049.0,39048.0,0.00032607]
[1610066874544,0.13632608,39049.0,39032.0,0.12162]
[1610066874744,0.13632608,39049.0,39048.0,0.00032609]
[1610066875145,0.13632608,39049.0,39033.0,0.03173629]
[1610066875347,0.13632608,39049.0,39048.0,0.00032609]
[1610066875546,0.13632608,39049.0,39034.0,0.00032615]
[1610066875745,0.13632608,39049.0,39034.0,0.03141583]
[1610066875946,0.13632608,39035.0,39034.0,0.03141583]
[1610066876146,0.13632608,39035.0,39022.0,0.03174348]
[1610066876147,0.5144,39034.0,39022.0,0.03174348]
[1610066876347,0.5144,39034.0,39003.0,0.15707368]
[1610066876547,0.26427608,39035.0,39003.0,0.15707368]
[1610066876548,0.26427608,39035.0,39023.0,0.03174466]
[1610066876746,3.89987608,39035.0,39023.0,0.03174466]
[1610066876949,3.89987608,39035.0,38985.0,4.1367]
[1610066877147,3.89987608,39035.0,39024.0,0.03174448]
[1610066877349,3.89987608,39035.0,38999.0,0.10125]
[1610066877648,3.89987608,39035.0,39000.0,0.03174495]
[1610066878048,0.13632608,39008.0,39000.0,0.03174495]
[1610066878849,0.1043,39020.0,39000.0,0.03174495]
[1610066879049,3.76355,39035.0,39008.0,0.13632608]
[1610066879251,0.12795,39035.0,39008.0,0.12701]
[1610066879650,0.12795,39035.0,39009.0,0.03174336]
[1610066880050,0.13632608,39032.0,39015.0,0.13632608]
[1610066880450,0.12795,39035.0,39015.0,0.13632608]
[1610066880649,0.12795,39035.0,39016.0,0.03173797]
[1610066880848,0.38022418,39053.0,39016.0,0.16065797]
[1610066881250,0.38022418,39053.0,39016.0,0.16033185]
[1610066881449,0.38022418,39053.0,39016.0,0.12892]
[1610066881649,0.38022418,39053.0,39017.0,0.03172589]
[1610066882051,0.38022418,39053.0,39033.0,0.13632608]
[1610066882449,0.38022418,39053.0,39034.0,0.03172508]
[1610066883050,0.38022418,39053.0,39027.0,0.13587]
[1610066883051,0.38022418,39053.0,39028.0,0.0317252]
[1610066883249,0.38022418,39053.0,39035.0,0.03172461]
[1610066883449,0.38022418,39053.0,39029.0,0.03172468]
[1610066883850,0.38022418,39053.0,39028.0,0.03172499]
[1610066884050,0.38022418,39053.0,39027.0,0.13587]
[1610066884051,0.13632608,39038.0,39030.0,0.03172595]
[1610066884251,0.13632608,39038.0,39029.0,0.0317258]
[1610066884654,0.13632608,39038.0,39028.0,0.03172557]
[1610066884852,0.13632608,39038.0,39030.0,0.03172573]
[1610066885052,0.13632608,39038.0,39029.0,0.03172549]
[1610066885452,0.13632608,39038.0,39031.0,0.03172534]
[1610066885654,0.13632608,39038.0,39030.0,0.03172482]
[1610066885853,0.13632608,39038.0,39032.0,0.03172482]
[1610066886055,0.13632608,39042.0,39032.0,0.13664267]
[1610066886253,0.13632608,39042.0,39032.0,0.13632608]
[1610066886454,0.13632608,39042.0,39033.0,0.03172372]
[1610066887753,0.38022418,39053.0,39033.0,0.03172372]
[1610066887953,0.38022418,39053.0,39052.0,0.13632608]
[1610066888556,0.38022418,39053.0,39052.0,0.23083022]
[1610066888755,0.38022418,39053.0,39052.0,0.32501236]
[1610066889958,0.51655026,39053.0,39052.0,0.16803843]
[1610066890358,0.51655026,39053.0,39052.0,0.03171235]
[1610066890857,0.51655026,39053.0,39050.0,0.03171388]
[1610066891260,0.51655026,39053.0,39052.0,0.0317152]
[1610066891461,0.51655026,39053.0,39051.0,0.0317148]
[1610066891661,0.51655026,39053.0,39052.0,0.03171596]
[1610066892260,0.51655026,39053.0,39042.0,0.03171634]
[1610066892467,0.51655026,39053.0,39052.0,0.03171696]
[1610066892661,0.51655026,39053.0,39043.0,0.0317177]
[1610066893062,0.51655026,39053.0,39042.0,0.03171943]
[1610066893262,0.51655026,39053.0,39044.0,0.03171906]
[1610066893462,0.51655026,39053.0,39044.0,0.00031596]
[1610066893662,0.51655026,39053.0,39043.0,0.03171935]
[1610066893863,0.51655026,39053.0,39045.0,0.00031596]
[1610066894062,0.13632608,39046.0,39044.0,0.03172027]
[1610066894264,0.13632608,39046.0,39044.0,0.00031596]
[1610066894463,0.25691608,39046.0,39043.0,0.03140501]
[1610066894662,0.25691608,39046.0,39045.0,0.00031599]
[1610066894863,0.25691608,39046.0,39044.0,0.03172227]
[1610066895065,0.25691608,39046.0,39045.0,0.00031601]
[1610066895464,0.25691608,39046.0,39029.0,0.03140867]
[1610066895664,0.25691608,39046.0,39030.0,0.03140912]
[1610066895865,0.25691608,39046.0,39030.0,0.00031604]
[1610066896065,0.13632608,39031.0,39030.0,0.00031604]
[1610066896265,0.13632608,39031.0,39017.0,0.03172745]
[1610066896466,0.13632608,39031.0,39016.0,0.12892]
[1610066896664,0.13632608,39031.0,39018.0,0.00031605]
[1610066897066,0.13632608,39031.0,39017.0,0.00031607]
[1610066897265,0.13632608,39031.0,39019.0,0.00031607]
[1610066897466,0.13632608,39031.0,39018.0,0.00031607]
[1610066897866,0.13632608,39031.0,39020.0,0.00031607]
[1610066898066,0.13632608,39021.0,39019.0,0.00031607]
[1610066898267,0.13632608,39021.0,39010.0,0.03141457]
[1610066898466,0.13632608,39021.0,39020.0,0.00031605]
[1610066898867,0.13632608,39021.0,39010.0,0.03173062]
[1610066899068,0.13632608,39021.0,39020.0,0.00031605]
[1610066899268,0.13632608,39021.0,39011.0,0.00031605]
[1610066899670,0.13632608,39021.0,39010.0,0.03173062]
[1610066899869,0.13632608,39021.0,39012.0,0.00031605]
[1610066900071,0.13632608,39025.0,39015.0,0.13632608]
[1610066900474,0.13632608,39025.0,39016.0,0.03172794]
[1610066900671,0.13632608,39025.0,39016.0,0.11679794]
[1610066901273,0.13632608,39025.0,39017.0,0.03172824]
[1610066903272,0.13632608,39025.0,39018.0,0.00031604]
[1610066903774,0.13632608,39025.0,39017.0,0.03172823]
[1610066904173,0.13632608,39025.0,39019.0,0.00031604]
[1610066904373,0.13632608,39025.0,39018.0,0.00031604]
[1610066904573,0.13632608,39025.0,39020.0,0.00031604]
[1610066904973,0.13632608,39025.0,39019.0,0.00031604]
[1610066905174,0.13632608,39025.0,39021.0,0.00031604]
[1610066905374,0.13632608,39025.0,39020.0,0.00031604]
[1610066905677,0.13632608,39025.0,39022.0,0.00031604]
[1610066905875,0.13632608,39025.0,39021.0,0.00031604]
[1610066906276,0.13632608,39025.0,39017.0,0.03172823]
[1610066906477,0.13632608,39025.0,39022.0,0.00031604]
[1610066906677,0.13632608,39025.0,39018.0,0.00031604]
[1610066907078,0.13632608,39025.0,39017.0,0.03172823]
[1610066907278,0.13632608,39025.0,39019.0,0.00031604]
[1610066907478,0.13632608,39025.0,39018.0,0.00031604]
[1610066907779,0.13632608,39025.0,39017.0,0.03172823]
[1610066907979,0.13632608,39025.0,39019.0,0.00031604]
[1610066908281,0.13632608,39025.0,39017.0,0.03172823]
[1610066908679,0.13632608,39025.0,39020.0,0.00031604]
[1610066908880,0.13632608,39025.0,39018.0,0.00031604]
[1610066909079,0.1569,39045.0,39021.0,0.00031604]
[1610066909482,0.1569,39045.0,39025.0,2.8667]
[1610066909881,0.1569,39045.0,39026.0,0.18875385]
[1610066910081,0.1569,39045.0,39042.0,0.13632608]
[1610066910481,0.13632608,39052.0,39043.0,0.03171929]
[1610066911082,0.11414,39064.0,39043.0,0.03171929]
[1610066912083,0.13632608,39051.0,39047.0,0.13632608]
[1610066912283,0.13632608,39051.0,39043.0,0.03171929]
[1610066912484,0.13632608,39051.0,39048.0,0.03171298]
[1610066912783,0.13632608,39051.0,39044.0,0.03171344]
[1610066912983,0.13632608,39051.0,39049.0,0.0317132]
[1610066913386,0.11414,39064.0,39042.0,0.03171295]
[1610066913586,0.11414,39064.0,39050.0,0.03171298]
[1610066913785,0.11414,39064.0,39043.0,0.03171217]
[1610066913985,0.11414,39064.0,39049.0,0.11393]
[1610066914186,0.13632608,39057.0,39051.0,0.13632608]
[1610066914586,0.13632608,39057.0,39052.0,0.03171196]
[1610066915889,0.13632608,39057.0,39052.0,0.00031589]
[1610066916089,0.51655026,39053.0,39050.0,0.03171271]
[1610066916290,0.51655026,39053.0,39052.0,0.00031589]
[1610066916489,0.51655026,39053.0,39051.0,0.00031589]
[1610066916691,0.51655026,39053.0,39052.0,0.00031589]
[1610066916991,0.51655026,39053.0,39050.0,0.03171274]
[1610066917393,0.51655026,39053.0,39052.0,0.0003159]
[1610066917592,0.51655026,39053.0,39051.0,0.0003159]
[1610066917792,0.51655026,39053.0,39052.0,0.0003159]
[1610066918397,0.51655026,39053.0,39050.0,0.0317127]
[1610066918594,0.51655026,39053.0,39052.0,0.00031588]
[1610066918795,0.51655026,39053.0,39051.0,0.00031588]
[1610066919195,0.51655026,39053.0,39050.0,0.0317127]
[1610066919395,0.51655026,39053.0,39052.0,0.00031588]
[1610066919596,0.51655026,39053.0,39051.0,0.00031588]
[1610066919995,0.51655026,39053.0,39050.0,0.0317127]
[1610066920196,0.51655026,39053.0,39052.0,0.00031588]
[1610066920396,0.51655026,39053.0,39051.0,0.0003159]
[1610066920697,0.51655026,39053.0,39050.0,0.10296]
[1610066921099,0.51655026,39053.0,39052.0,0.0003159]
[1610066921298,0.51655026,39053.0,39051.0,0.03171334]
[1610066921499,0.51655026,39053.0,39052.0,0.0003159]
[1610066922099,0.51655026,39053.0,39051.0,0.03171334]
[1610066922300,0.51655026,39053.0,39052.0,0.0003159]
[1610066922901,0.51655026,39053.0,39047.0,0.03171321]
[1610066923104,0.38022418,39053.0,39052.0,0.03171254]
[1610066923303,0.38022418,39053.0,39049.0,0.10277]
[1610066923702,0.38022418,39053.0,39050.0,0.031708]
[1610066924102,0.38022418,39053.0,39052.0,0.13632608]
[1610066924704,0.38022418,39053.0,39052.0,0.16803187]
[1610066927808,0.38022418,39053.0,39052.0,3.26523187]
[1610066928408,0.38022418,39053.0,39052.0,3.4221826]
[1610066938622,0.38022418,39053.0,39052.0,0.3249826]
[1610066939222,0.38022418,39053.0,39052.0,0.16803187]
[1610066943928,0.38022418,39053.0,39052.0,0.62433187]
[1610066944530,0.38022418,39053.0,39052.0,0.68711277]
[1610066946634,0.21172418,39053.0,39052.0,0.68711277]
[1610066954140,0.21172418,39053.0,39052.0,0.23081277]
[1610066954541,0.21172418,39053.0,39052.0,0.16803187]
[1610066962351,0.34805026,39053.0,39049.0,0.10277]
[1610066962552,0.34805026,39053.0,39046.0,0.15692372]
[1610066962751,0.34805026,39053.0,39050.0,0.0317118]
[1610066962952,0.34805026,39053.0,39047.0,0.03171538]
[1610066963152,0.34805026,39053.0,39051.0,0.03171648]
[1610066963552,0.34805026,39053.0,39042.0,0.0317175]
[1610066963752,0.34805026,39053.0,39052.0,0.03171946]
[1610066963953,0.34805026,39053.0,39043.0,0.03171964]
[1610066964153,3.2502,39045.0,39043.0,0.03171964]
[1610066964354,0.13632608,39044.0,39042.0,0.03172062]
[1610066964554,0.13632608,39044.0,39023.0,0.13632608]
[1610066964755,0.13632608,39044.0,39043.0,0.03172136]
[1610066965153,0.13632608,39044.0,39024.0,0.03172217]
[1610066965354,0.13632608,39044.0,39043.0,0.03172209]
[1610066965555,0.13632608,39044.0,39023.0,0.13632608]
[1610066965556,0.13632608,39044.0,39025.0,0.031722]
[1610066965956,0.13632608,39044.0,39043.0,0.03172247]
[1610066966155,0.13632608,39044.0,39023.0,0.13632608]
[1610066966156,0.13632608,39044.0,39026.0,0.03172303]
[1610066966355,0.13632608,39033.0,39031.0,4.0629]
[1610066966856,0.09772,39045.0,39044.0,0.13632608]
[1610066967056,0.09772,39045.0,39032.0,0.18875296]
[1610066967257,0.09772,39045.0,39044.0,0.03172042]
[1610066967456,0.09772,39045.0,39041.0,3.5837]
[1610066967657,0.09772,39045.0,39044.0,0.0317202]
[1610066968056,0.09772,39045.0,39042.0,0.18874519]
[1610066968257,0.09772,39045.0,39044.0,0.03171914]
[1610066968456,0.09772,39045.0,39043.0,0.03171919]
[1610066968858,0.09772,39045.0,39044.0,0.03171897]
[1610066969058,0.21172418,39053.0,39044.0,0.03171897]
[1610066969258,0.21172418,39053.0,39048.0,3.7224]
[1610066969861,0.21172418,39053.0,39049.0,0.1887177]
[1610066970258,0.21172418,39053.0,39052.0,0.13632608]
[1610066970559,0.21172418,39053.0,39052.0,0.16803992]
[1610066971359,0.21172418,39053.0,39052.0,0.03171384]
[1610066971559,0.21172418,39053.0,39052.0,0.03171411]
[1610066971760,0.21172418,39053.0,39049.0,0.18871733]
[1610066971960,0.21172418,39053.0,39052.0,0.03140032]
[1610066972163,0.21172418,39053.0,39052.0,0.03171526]
[1610066972365,0.21172418,39053.0,39049.0,0.18871786]
[1610066972561,0.21172418,39053.0,39052.0,0.03171561]
[1610066972760,0.21172418,39053.0,39050.0,0.03171554]
[1610066973061,0.21172418,39053.0,39049.0,0.1887176]
[1610066973262,0.21172418,39053.0,39051.0,0.00031494]
[1610066973461,0.21172418,39053.0,39051.0,0.031715]
[1610066973661,0.21172418,39053.0,39049.0,0.18871764]
[1610066973862,0.21172418,39053.0,39052.0,0.03171634]
[1610066974262,0.21172418,39053.0,39050.0,0.03171588]
[1610066974463,0.21172418,39053.0,39052.0,0.03171554]
[1610066974662,0.21172418,39053.0,39051.0,0.03171572]
[1610066974865,0.21172418,39053.0,39052.0,0.03171417]
[1610066975265,0.21172418,39053.0,39049.0,0.18871584]
[1610066975465,0.21172418,39053.0,39052.0,0.03171344]
[1610066975666,0.21172418,39053.0,39050.0,0.03171242]
[1610066976065,0.21172418,39053.0,39049.0,0.18871494]
[1610066976266,0.21172418,39053.0,39051.0,0.0317131]
[1610066976465,0.21172418,39053.0,39050.0,0.03171283]
[1610066976865,0.21172418,39053.0,39052.0,0.03171307]
[1610066977067,0.21172418,39053.0,39051.0,0.03171247]
[1610066977267,0.21172418,39053.0,39052.0,0.03171249]
[1610066977867,0.21172418,39053.0,39049.0,0.18871477]
[1610066978069,0.21172418,39053.0,39052.0,0.03171254]
[1610066978268,0.21172418,39053.0,39052.0,0.16803862]
[1610066978468,0.21172418,39053.0,39052.0,0.13632608]
[1610066978668,0.21172418,39053.0,39052.0,0.16803864]
[1610066980571,0.21172418,39053.0,39052.0,3.55303864]
[1610066980970,0.21172418,39053.0,39052.0,3.71000141]
[1610066987280,0.21172418,39053.0,39052.0,0.32500141]
[1610066987779,0.21172418,39053.0,39052.0,0.16803864]
[1610066990482,0.34805026,39053.0,39052.0,0.16803864]
[1610066992184,0.21172418,39053.0,39052.0,0.16803864]
[1610066992786,0.21172418,39053.0,39052.0,0.32500516]
[1610066997392,0.21172418,39053.0,39052.0,0.16803864]
[1610066999491,0.21172418,39053.0,39052.0,4.12743864]
[1610066999691,0.21172418,39053.0,39052.0,4.23366864]
[1610066999891,0.21172418,39053.0,39052.0,4.39061145]
[1610067001392,0.21172418,39053.0,39052.0,0.43121145]
[1610067001591,0.21172418,39053.0,39052.0,4.30371145]
[1610067001791,0.21172418,39053.0,39052.0,4.14676864]
[1610067001993,0.21172418,39053.0,39052.0,4.30368656]
[1610067003394,0.21172418,39053.0,39052.0,0.43118656]
[1610067003995,0.21172418,39053.0,39052.0,0.27426864]
[1610067007599,0.27782,39100.0,39052.0,0.27426864]
[1610067007799,0.27782,39100.0,39058.0,3.916]
[1610067008399,0.27782,39100.0,39059.0,0.18856359]
[1610067008600,0.13632608,39079.0,39068.0,0.13632608]
[1610067009098,0.13632608,39079.0,39069.0,0.03169083]
[1610067009298,0.13632608,39079.0,39069.0,0.16098083]
[1610067009699,0.13632608,39079.0,39070.0,0.0316916]
[1610067010500,0.13632608,39079.0,39076.0,0.13632608]
[1610067011001,0.13632608,39079.0,39077.0,0.03169125]
[1610067012499,0.13632608,39083.0,39077.0,0.03169125]
[1610067014502,1.5,39099.0,39070.0,0.03169347]
[1610067014503,0.13632608,39078.0,39070.0,0.03169347]
[1610067014704,0.13632608,39078.0,39069.0,0.12929]
[1610067014904,0.13632608,39078.0,39071.0,0.03169605]
[1610067015303,0.13632608,39078.0,39070.0,0.03169815]
[1610067015503,0.13632608,39078.0,39072.0,0.03169841]
[1610067015703,0.13632608,39078.0,39071.0,0.03169828]
[1610067016006,0.13632608,39078.0,39073.0,0.03169838]
[1610067016205,0.13632608,39078.0,39072.0,0.03169871]
[1610067016608,0.13632608,39083.0,39070.0,0.13632608]
[1610067016805,0.13632608,39083.0,39073.0,0.03169709]
[1610067017005,0.13632608,39083.0,39071.0,0.03169707]
[1610067017405,0.13632608,39083.0,39070.0,0.13632608]
[1610067017406,0.13632608,39083.0,39074.0,0.03169707]
[1610067017606,0.13632608,39083.0,39070.0,0.13632608]
[1610067017607,0.13632608,39083.0,39072.0,0.03169658]
[1610067017806,0.13632608,39083.0,39075.0,0.03169619]
[1610067018108,0.13632608,39083.0,39073.0,0.03169592]
[1610067018306,0.13632608,39083.0,39076.0,0.03169611]
[1610067018508,0.13632608,39077.0,39076.0,0.03169611]
[1610067018707,0.13632608,39077.0,39071.0,0.63239663]
[1610067018907,0.13632608,39077.0,39076.0,0.03169631]
[1610067019109,0.13632608,39077.0,39072.0,0.0944565]
[1610067019408,0.13632608,39077.0,39076.0,0.03169643]
[1610067019608,0.13632608,39077.0,39072.0,0.06276016]
[1610067020007,0.13632608,39077.0,39072.0,0.09445787]
[1610067020510,0.13632608,39077.0,39074.0,0.13632608]
[1610067020912,0.13632608,39077.0,39075.0,0.03169726]
[1610067024115,0.13632608,39077.0,39072.0,0.09445832]
[1610067024516,0.13632608,39077.0,39076.0,0.03169816]
[1610067024717,0.13632608,39077.0,39073.0,0.0316979]
[1610067024917,0.13632608,39077.0,39076.0,0.03169801]
[1610067025317,0.13632608,39077.0,39074.0,0.03169774]
[1610067025518,0.13632608,39077.0,39076.0,0.03169733]
[1610067025718,0.13632608,39077.0,39075.0,0.03169725]
[1610067025919,0.13632608,39077.0,39076.0,0.03169721]
[1610067026221,0.13632608,39077.0,39072.0,0.09445737]
[1610067026620,0.13632608,39077.0,39076.0,0.16802289]
[1610067026820,0.13632608,39077.0,39076.0,0.13632608]
[1610067027020,0.13632608,39077.0,39076.0,0.03169701]
[1610067027221,0.13632608,39077.0,39076.0,2.97709701]
[1610067027421,0.27782,39100.0,39076.0,2.97709701]
[1610067027622,0.27782,39100.0,39078.0,0.13632608]
[1610067027822,0.27782,39100.0,39077.0,0.18858648]
[1610067028222,0.12092,39100.0,39093.0,3.2622]
[1610067028422,0.1569,39120.0,39093.0,3.2622]
[1610067028423,0.01053151,39116.0,39093.0,3.2622]
[1610067028623,0.01053151,39116.0,39110.0,0.13632608]
[1610067028825,0.1569,39120.0,39110.0,0.13632608]
[1610067029025,0.1569,39120.0,39108.0,2.9775]
[1610067029425,0.24157,39120.0,39109.0,0.09439816]
[1610067029924,0.24157,39120.0,39109.0,0.18847561]
[1610067030425,0.24157,39120.0,39109.0,0.09439816]
[1610067030626,0.24157,39120.0,39112.0,0.13632608]
[1610067031026,0.24157,39120.0,39113.0,0.03167429]
[1610067031826,0.24157,39120.0,39108.0,2.69160602]
[1610067032225,0.24157,39120.0,39109.0,0.00031602]
[1610067032426,0.08467,39120.0,39109.0,0.03167286]
[1610067032625,0.13632608,39110.0,39109.0,0.03167286]
[1610067032827,0.13632608,39110.0,39105.0,0.03167385]
[1610067033026,0.13632608,39110.0,39109.0,0.0316747]
[1610067033425,0.13632608,39110.0,39105.0,0.03167544]
[1610067033627,0.13632608,39110.0,39109.0,0.03167507]
[1610067033827,0.13632608,39110.0,39106.0,0.03167602]
[1610067034227,0.13632608,39110.0,39099.0,0.09439317]
[1610067034427,0.13632608,39110.0,39107.0,0.03167632]
[1610067034629,0.13632608,39110.0,39100.0,0.03168054]
[1610067034828,4.0773,39108.0,39100.0,0.03168054]
[1610067035027,4.0773,39108.0,39094.0,0.03167869]
[1610067035227,4.0773,39108.0,39101.0,0.03167927]
[1610067035429,4.0773,39108.0,39095.0,0.03167966]
[1610067035827,4.0773,39108.0,39094.0,0.03168096]
[1610067036028,4.0773,39108.0,39096.0,0.03168073]
[1610067036228,4.0773,39108.0,39095.0,0.03168301]
[1610067036632,4.0773,39108.0,39097.0,0.03168339]
[1610067036832,4.0773,39108.0,39096.0,0.03168493]
[1610067037031,4.0773,39108.0,39098.0,0.03168401]
[1610067037432,4.0773,39108.0,39097.0,0.03168494]
[1610067037632,4.0773,39108.0,39099.0,0.03168518]
[1610067037833,3.2115,39100.0,39098.0,0.03168544]
[1610067038233,3.3376,39100.0,39084.0,0.15683352]
[1610067038435,0.1261,39100.0,39099.0,0.03168637]
[1610067038635,3.31442608,39100.0,39085.0,0.03168824]
[1610067038836,3.31442608,39100.0,39099.0,0.03168996]
[1610067039238,3.31442608,39100.0,39077.0,0.03168946]
[1610067039436,3.31442608,39100.0,39099.0,0.03168903]
[1610067039636,3.31442608,39100.0,39078.0,0.03168971]
[1610067040036,3.31442608,39100.0,39077.0,0.03168947]
[1610067040237,3.31442608,39100.0,39079.0,0.0316885]
[1610067040437,3.31442608,39100.0,39078.0,0.03168891]
[1610067040636,0.13632608,39079.0,39078.0,0.03168891]
[1610067040838,0.13632608,39079.0,39072.0,0.1568663]
[1610067041039,0.13632608,39079.0,39078.0,0.03168914]
[1610067041237,0.13632608,39079.0,39077.0,0.03168914]
[1610067041637,0.13632608,39079.0,39078.0,0.03168908]
[1610067042038,0.13632608,39079.0,39062.0,0.03169036]
[1610067042238,0.13632608,39079.0,39078.0,0.00031621]
[1610067042439,0.13632608,39079.0,39078.0,0.03169074]
[1610067042638,0.13632608,39079.0,39062.0,0.03169067]
[1610067042839,0.13632608,39079.0,39078.0,0.03169088]
[1610067043039,0.13632608,39079.0,39078.0,0.00031621]
[1610067043238,0.13632608,39079.0,39061.0,0.29319052]
[1610067043438,0.13632608,39079.0,39078.0,0.00031622]
[1610067043640,3.14792608,39079.0,39062.0,0.03169241]
[1610067043839,3.14792608,39079.0,39078.0,0.00031622]
[1610067044239,3.14792608,39079.0,39062.0,0.03169241]
[1610067044442,3.14792608,39079.0,39078.0,0.00031622]
[1610067044639,3.14792608,39079.0,39063.0,0.00031622]
[1610067044840,0.13632608,39079.0,39063.0,0.00031622]
[1610067045041,3.4745,39074.0,39062.0,0.03169241]
[1610067045240,3.4745,39074.0,39064.0,0.00031622]
[1610067045441,3.4745,39074.0,39063.0,0.00031622]
[1610067045741,3.4745,39074.0,39065.0,0.00031623]
[1610067045942,0.13632608,39079.0,39063.0,0.00031623]
[1610067046143,3.0428,39067.0,39063.0,0.00031623]
[1610067046343,3.0428,39067.0,39062.0,0.03169295]
[1610067046543,3.0428,39067.0,39064.0,0.00031623]
[1610067046744,0.13632608,39065.0,39063.0,0.00031623]
[1610067047047,0.13632608,39065.0,39058.0,0.03169331]
[1610067047443,0.13632608,39065.0,39064.0,0.00031623]
[1610067047644,0.13632608,39065.0,39059.0,0.03169361]
[1610067047844,0.13632608,39065.0,39052.0,0.10324]
[1610067047845,3.2153,39060.0,39052.0,0.10324]
[1610067048245,0.13632608,39065.0,39052.0,0.10324]
[1610067048447,3.6401,39053.0,39052.0,0.10324]
[1610067048646,3.77642608,39053.0,39052.0,0.10324]
[1610067048845,3.77642608,39053.0,39052.0,0.03170104]
[1610067049245,3.77642608,39053.0,39033.0,0.03170314]
[1610067049445,3.77642608,39053.0,39052.0,0.00031633]
[1610067049646,3.77642608,39053.0,39040.0,0.09427]
[1610067049946,0.13632608,39053.0,39041.0,0.03170393]
[1610067050347,1.5,39052.0,39029.0,0.15693405]
[1610067050546,1.5,39052.0,39032.0,0.15695372]
[1610067050748,3.24292608,39033.0,39030.0,0.03171036]
[1610067050947,0.13632608,39033.0,39030.0,0.03171036]
[1610067051149,3.4755,39022.0,39021.0,0.15696981]
[1610067051349,0.13632608,39033.0,39013.0,0.15699655]
[1610067051549,1.5,39032.0,39012.0,0.09698]
[1610067051750,1.5,39032.0,39014.0,0.00031652]
[1610067051751,3.6708,39023.0,39014.0,0.00031652]
[1610067051950,1.5,39032.0,39014.0,0.0317216]
[1610067052152,3.1181,39028.0,39003.0,0.03172301]
[1610067052350,3.1181,39028.0,39002.0,0.11902]
[1610067052351,0.13632608,39033.0,39015.0,0.03172398]
[1610067052551,2.9192,39016.0,39004.0,0.03172295]
[1610067052752,0.13632608,39005.0,39004.0,0.03172295]
[1610067052952,0.13632608,39005.0,39002.0,0.11902]
[1610067053151,0.13632608,39005.0,39004.0,0.03172342]
[1610067053351,0.13632608,39005.0,39003.0,0.00031654]
[1610067053552,0.13632608,39005.0,39003.0,0.03172361]
[1610067056054,0.13632608,39005.0,39003.0,0.03140707]
[1610067056255,0.13632608,39005.0,39004.0,0.00031652]
[1610067056556,0.13632608,39005.0,39004.0,0.00063304]
[1610067056955,0.13632608,39005.0,39004.0,0.00031652]
[1610067057156,0.13632608,39005.0,39004.0,0.00063304]
[1610067057956,0.13632608,39005.0,39004.0,0.00031652]
[1610067058156,0.13632608,39005.0,39004.0,0.0320405]
[1610067058356,0.13632608,39005.0,39004.0,0.00031652]
[1610067058756,0.13632608,39005.0,39004.0,0.00063304]
[1610067060658,0.70582608,39005.0,38999.0,0.1171]
[1610067060858,0.13632608,39000.0,38991.0,0.10079]
[1610067061262,4.0446,38992.0,38991.0,0.10079]
[1610067061859,4.0446,38992.0,38991.0,0.13253174]
[1610067062058,4.0446,38992.0,38983.0,0.09253]
[1610067062661,4.0446,38992.0,38984.0,0.031755]
[1610067062861,0.13632608,38985.0,38984.0,0.031755]
[1610067063060,0.65612608,38985.0,38984.0,0.031755]
[1610067063260,0.65612608,38985.0,38971.0,0.11587]
[1610067063460,0.65612608,38985.0,38984.0,0.03175751]
[1610067063661,0.65612608,38985.0,38984.0,0.00031842]
[1610067063860,0.77022608,38985.0,38972.0,0.03175778]
[1610067064060,0.77022608,38985.0,38984.0,0.0314394]
[1610067064260,0.77022608,38985.0,38973.0,0.03144045]
[1610067064461,0.25042608,38985.0,38984.0,0.03175891]
[1610067064661,4.08632608,38985.0,38984.0,0.03175891]
[1610067064862,4.08632608,38985.0,38974.0,0.03175901]
[1610067065062,4.08632608,38985.0,38984.0,0.03175972]
[1610067065262,4.08632608,38985.0,38975.0,0.03175996]
[1610067065461,4.08632608,38985.0,38984.0,0.03175993]
[1610067065861,4.08632608,38985.0,38960.0,0.03175914]
[1610067066062,4.08632608,38985.0,38984.0,0.03175903]
[1610067066262,4.08632608,38985.0,38961.0,0.03175899]
[1610067066665,0.25042608,38985.0,38960.0,0.03175995]
[1610067066865,0.13632608,38961.0,38955.0,0.06288256]
[1610067067068,3.46462608,38961.0,38955.0,0.06288256]
[1610067067264,3.46462608,38961.0,38928.0,3.3342]
[1610067067466,0.13632608,38961.0,38938.0,0.11656]
[1610067067667,3.5475,38945.0,38938.0,0.11656]
[1610067067864,3.5475,38945.0,38939.0,0.03146277]
[1610067068066,0.10835,38952.0,38939.0,0.03178144]
[1610067068465,0.10835,38952.0,38933.0,0.09472805]